lending/lending_fUSD_20250114
["ID","MTS","AMOUNT","RATE_DAILY","PERIOD"]
[348926783,1736874650912,-500.0,0.00010521,2]
[348926784,1736874650923,-500.0,0.00010521,2]
[348926785,1736874650933,-500.0,0.00010521,2]
[348926786,1736874650942,-500.0,0.00010521,2]
[348926787,1736874650954,-500.0,0.00010521,2]
[348926788,1736874650964,-792.53,0.00010521,2]
[348926789,1736874650974,-500.0,0.00010521,2]
[348926790,1736874650985,-735.394565,0.00010521,2]
[348926791,1736874650995,-500.0,0.00010521,2]
[348926792,1736874651006,-500.0,0.00010521,2]
[348926793,1736874651017,-500.0,0.00010521,2]
[348926794,1736874651027,-500.0,0.00010521,2]
[348926795,1736874651039,-438.70222274,0.00010521,2]
[348926796,1736874651056,-500.0,0.00010521,2]
[348926797,1736874651066,-500.0,0.00010521,2]
[348926798,1736874651080,-500.0,0.00010521,2]
[348926799,1736874651091,-2410.71,0.00010521,2]
[348926800,1736874651103,-767.859734,0.00010521,2]
[348926801,1736874651114,-500.0,0.00010521,2]
[348926802,1736874651129,-500.0,0.00010521,2]
[348926803,1736874651140,-500.0,0.00010521,2]
[348926804,1736874651151,-500.0,0.00010521,2]
[348926805,1736874651163,-841.88,0.00010521,2]
[348926806,1736874651175,-500.0,0.00010521,2]
[348926807,1736874651186,-500.0,0.00010521,2]
[348926808,1736874651199,-500.0,0.00010521,2]
[348926809,1736874651211,-500.0,0.00010521,2]
[348926810,1736874651221,-500.0,0.00010521,2]
[348926811,1736874651233,-500.0,0.00010521,2]
[348926812,1736874651244,-518.52702307,0.00010521,2]
[348926813,1736874651255,-500.0,0.00010521,2]
[348926814,1736874651265,-500.0,0.00010521,2]
[348926815,1736874651275,-500.0,0.00010521,2]
[348926816,1736874651285,-500.0,0.00010521,2]
[348926817,1736874651296,-500.0,0.00010521,2]
[348926818,1736874651307,-500.0,0.00010521,2]
[348926819,1736874651317,-500.0,0.00010521,2]
[348926820,1736874651327,-500.0,0.00010521,2]
[348926821,1736874651337,-500.0,0.00010521,2]
[348926822,1736874651347,-500.0,0.00010521,2]
[348926823,1736874651357,-508.32434252,0.00010521,2]
[348926824,1736874651367,-500.0,0.00010521,2]
[348926825,1736874651377,-2848.83,0.00010521,2]
[348926826,1736874651387,-500.0,0.00010521,2]
[348926827,1736874651396,-500.0,0.00010521,2]
[348926828,1736874651409,-500.0,0.00010521,2]
[348926829,1736874651421,-500.0,0.00010521,2]
[348926830,1736874651432,-500.0,0.00010521,2]
[348926831,1736874651443,-500.0,0.00010521,2]
[348926832,1736874651454,-500.0,0.00010521,2]
[348926833,1736874651464,-500.0,0.00010521,2]
[348926834,1736874651475,-500.0,0.00010521,2]
[348926835,1736874651486,-500.0,0.00010521,2]
[348926836,1736874651496,-500.0,0.00010521,2]
[348926837,1736874651507,-2878.74,0.00010521,2]
[348926838,1736874651517,-500.0,0.00010521,2]
[348926839,1736874651527,-500.0,0.00010521,2]
[348926840,1736874651537,-500.0,0.00010521,2]
[348926841,1736874651547,-500.0,0.00010521,2]
[348926842,1736874651558,-500.0,0.00010521,2]
[348926843,1736874651569,-2273.43,0.00010521,2]
[348926844,1736874651580,-491.91427277,0.00010521,2]
[348926845,1736874651590,-505.92600863,0.00010521,2]
[348926846,1736874651600,-500.0,0.00010521,2]
[348926847,1736874651611,-500.0,0.00010521,2]
[348926848,1736874651622,-500.0,0.00010521,2]
[348926849,1736874651632,-500.0,0.00010521,2]
[348926850,1736874651643,-500.0,0.00010521,2]
[348926851,1736874651653,-500.0,0.00010521,2]
[348926852,1736874651664,-500.0,0.00010521,2]
[348926853,1736874651674,-1853.63,0.00010521,2]
[348926854,1736874651685,-500.0,0.00010521,2]
[348926855,1736874651695,-500.0,0.00010521,2]
[348926856,1736874651713,-500.0,0.00010521,2]
[348926857,1736874651723,-500.0,0.00010521,2]
[348926858,1736874651733,-500.0,0.00010521,2]
[348926859,1736874651892,-500.0,0.00010521,2]
[348926860,1736874651920,-500.0,0.00010521,2]
[348926861,1736874651930,-500.0,0.00010521,2]
[348926862,1736874651939,-500.0,0.00010521,2]
[348926863,1736874651949,-500.0,0.00010521,2]
[348926864,1736874651960,-500.0,0.00010521,2]
[348926865,1736874651970,-500.0,0.00010521,2]
[348926866,1736874651984,-861.59,0.00010521,2]
[348926867,1736874651994,-500.0,0.00010521,2]
[348926868,1736874652005,-500.0,0.00010521,2]
[348926869,1736874652015,-536.63,0.00010521,2]
[348926870,1736874652025,-500.0,0.00010521,2]
[348926871,1736874652036,-586.07070144,0.00010521,2]
[348926872,1736874652050,-500.0,0.00010521,2]
[348926873,1736874652059,-500.0,0.00010521,2]
[348926874,1736874652069,-241.74619702,0.00010521,2]
[348926875,1736874652078,-500.0,0.00010521,2]
[348926876,1736874652088,-500.0,0.00010521,2]
[348926877,1736874652097,-161.202259,0.00010521,2]
[348926878,1736874652107,-500.0,0.00010521,2]
[348926879,1736874652117,-500.0,0.00010521,2]
[348926880,1736874652128,-500.0,0.00010521,2]
[348926881,1736874652137,-183.94621274,0.00010521,2]
[348926882,1736874652148,-579.0,0.00010521,2]
[348926883,1736874652160,-500.0,0.00010521,2]
[348926884,1736874652171,-500.0,0.00010521,2]
[348926885,1736874652181,-500.0,0.00010521,2]
[348926886,1736874652191,-500.0,0.00010521,2]
[348926887,1736874652203,-500.0,0.00010521,2]
[348926888,1736874652212,-500.0,0.00010521,2]
[348926889,1736874652221,-500.0,0.00010521,2]
[348926890,1736874652231,-500.0,0.00010521,2]
[348926891,1736874652241,-500.0,0.00010521,2]
[348926892,1736874652250,-500.0,0.00010521,2]
[348926893,1736874652259,-500.0,0.00010522,2]
[348926894,1736874652269,-1596.93,0.00010522,2]
[348926895,1736874652278,-500.0,0.00010522,2]
[348926896,1736874652287,-569.76,0.00010522,2]
[348926897,1736874652296,-950.37,0.00010522,2]
[348926898,1736874652305,-500.0,0.00010522,2]
[348926899,1736874652315,-667.27,0.00010522,2]
[348926900,1736874652324,-500.0,0.00010523,2]
[348926901,1736874652334,-1566.81,0.00010523,2]
[348926902,1736874652343,-555.75,0.00010523,2]
[348926903,1736874652352,-852.0,0.00010523,2]
[348926904,1736874652361,-500.0,0.00010523,2]
[348926905,1736874652371,-500.0,0.00010523,2]
[348926906,1736874652379,-500.0,0.00010523,2]
[348926907,1736874652388,-777.15,0.00010523,2]
[348926908,1736874652398,-500.0,0.00010523,2]
[348926909,1736874652408,-500.0,0.00010523,2]
[348926910,1736874652418,-668.22,0.00010523,2]
[348926911,1736874652427,-500.0,0.00010523,2]
[348926912,1736874652436,-500.0,0.00010523,2]
[348926913,1736874652447,-500.0,0.00010523,2]
[348926914,1736874652459,-500.0,0.00010523,2]
[348926915,1736874652469,-579.09,0.00010523,2]
[348926916,1736874652478,-500.0,0.00010523,2]
[348926917,1736874652487,-961.72,0.00010523,2]
[348926918,1736874652497,-818.85,0.00010523,2]
[348926919,1736874652507,-1006.34049193,0.00010523,2]
[348926920,1736874652525,-659.03950807,0.00010523,2]
[348926921,1736874652536,-500.0,0.00010523,2]
[348926922,1736874652546,-1000.0,0.00010523,2]
[348926923,1736874652556,-784.12,0.00010523,2]
[348926924,1736874652566,-150.0,0.00010623,2]
[348926925,1736874652576,-150.255,0.00010623,2]
[348926926,1736874652585,-150.0,0.00010623,2]
[348926927,1736874652595,-152.104,0.00010623,2]
[348926928,1736874652605,-838.601,0.00010623,2]
[348926929,1736874652614,-1259.0,0.00010623,2]
[348926930,1736874652624,-820.0,0.00010623,2]
[348926931,1736874652634,-906.0,0.00010623,2]
[348926932,1736874652644,-1836.93028613,0.00010634,2]
[348926933,1736874652654,-862.70120168,0.00010657,2]
[348926934,1736874652664,-500.0,0.00010785,2]
[348926935,1736874652676,-633.66,0.00010785,2]
[348926936,1736874652686,-500.0,0.00010785,2]
[348926937,1736874652696,-500.0,0.00010785,2]
[348926938,1736874652710,-500.0,0.00010785,2]
[348926939,1736874652719,-500.0,0.00010785,2]
[348926940,1736874652728,-500.0,0.00010785,2]
[348926941,1736874652737,-500.0,0.00010785,2]
[348926942,1736874652746,-500.0,0.00010785,2]
[348926943,1736874652755,-500.0,0.00010785,2]
[348926944,1736874652765,-500.0,0.00010785,2]
[348926945,1736874652774,-500.0,0.00010785,2]
[348926946,1736874652784,-500.0,0.00010785,2]
[348926947,1736874652795,-500.0,0.00010785,2]
[348926948,1736874652806,-500.0,0.00010785,2]
[348926949,1736874652816,-328.47,0.00010785,2]
[348926950,1736874652826,-3407.14,0.00010785,2]
[348926951,1736874652835,-500.0,0.00010785,2]
[348926952,1736874652844,-500.0,0.00010785,2]
[348926953,1736874652853,-561.01,0.00010785,2]
[348926954,1736874652863,-508.87,0.00010785,2]
[348926955,1736874652872,-500.0,0.00010785,2]
[348926956,1736874652881,-500.0,0.00010785,2]
[348926957,1736874652890,-500.0,0.00010785,2]
[348926958,1736874652899,-500.0,0.00010785,2]
[348926959,1736874652908,-607.21,0.00010785,2]
[348926960,1736874652918,-500.0,0.00010785,2]
[348926961,1736874652928,-500.0,0.00010785,2]
[348926962,1736874652939,-500.0,0.00010785,2]
[348926963,1736874652949,-500.0,0.00010785,2]
[348926964,1736874652959,-917.35,0.00010785,2]
[348926965,1736874652968,-500.0,0.00010785,2]
[348926966,1736874652977,-500.0,0.00010785,2]
[348926967,1736874652987,-500.0,0.00010785,2]
[348926968,1736874652996,-989.63,0.00010785,2]
[348926969,1736874653005,-500.0,0.00010785,2]
[348926970,1736874653015,-500.0,0.00010785,2]
[348926971,1736874653024,-500.0,0.00010785,2]
[348926972,1736874653033,-500.0,0.00010785,2]
[348926973,1736874653045,-726.11,0.00010785,2]
[348926974,1736874653054,-500.0,0.00010785,2]
[348926975,1736874653064,-596.89,0.00010785,2]
[348926976,1736874653074,-501.39,0.00010785,2]
[348926977,1736874653083,-500.0,0.00010785,2]
[348926978,1736874653094,-500.0,0.00010785,2]
[348926979,1736874653104,-1861.09,0.00010785,2]
[348926980,1736874653114,-329.11364886,0.00010785,2]
[348926981,1736874653125,-500.0,0.00010785,2]
[348926982,1736874653135,-500.0,0.00010785,2]
[348926983,1736874653145,-1031.69,0.00010785,2]
[348926984,1736874653156,-500.0,0.00010785,2]
[348926985,1736874653167,-500.0,0.00010785,2]
[348926986,1736874653177,-2144.09,0.00010785,2]
[348926987,1736874653186,-500.0,0.00010785,2]
[348926988,1736874653195,-500.0,0.00010785,2]
[348926989,1736874653207,-500.0,0.00010785,2]
[348926990,1736874653217,-2297.71,0.00010785,2]
[348926991,1736874653227,-569.3,0.00010785,2]
[348926992,1736874653237,-500.0,0.00010785,2]
[348926993,1736874653247,-1091.36,0.00010785,2]
[348926994,1736874653259,-606.9,0.00010785,2]
[348926995,1736874653268,-500.0,0.00010785,2]
[348926996,1736874653280,-1243.37,0.00010785,2]
[348926997,1736874653290,-1821.82,0.00010785,2]
[348926998,1736874653301,-613.48,0.00010785,2]
[348926999,1736874653310,-501.3,0.00010785,2]
[348927000,1736874653321,-2499.84,0.00010785,2]
[348927001,1736874653331,-817.81,0.00010785,2]
[348927002,1736874653341,-500.0,0.00010785,2]
[348927003,1736874653351,-726.07,0.00010785,2]
[348927004,1736874653362,-524.12,0.00010785,2]
[348927005,1736874653371,-1768.11,0.00010785,2]
[348927006,1736874653382,-500.0,0.00010785,2]
[348927007,1736874653392,-500.0,0.00010785,2]
[348927008,1736874653402,-1022.18,0.00010785,2]
[348927009,1736874653413,-500.0,0.00010785,2]
[348927010,1736874653423,-634.66,0.00010785,2]
[348927011,1736874653432,-1118.55,0.00010785,2]
[348927012,1736874653442,-500.0,0.00010785,2]
[348927013,1736874653455,-500.0,0.00010785,2]
[348927014,1736874653467,-500.0,0.00010785,2]
[348927015,1736874653477,-1461.49,0.00010785,2]
[348927016,1736874653488,-523.3,0.00010785,2]
[348927017,1736874653498,-500.0,0.00010785,2]
[348927018,1736874653508,-835.63,0.00010785,2]
[348927019,1736874653517,-500.0,0.00010786,2]
[348927020,1736874653529,-500.0,0.00010786,2]
[348927021,1736874653539,-500.0,0.00010786,2]
[348927022,1736874653548,-500.0,0.00010786,2]
[348927023,1736874653558,-500.0,0.00010786,2]
[348927024,1736874653568,-500.0,0.00010786,2]
[348927025,1736874653579,-500.0,0.00010786,2]
[348927026,1736874653590,-500.0,0.00010786,2]
[348927027,1736874653599,-500.0,0.00010786,2]
[348927028,1736874653609,-500.0,0.00010786,2]
[348927029,1736874653618,-500.0,0.00010786,2]
[348927030,1736874653629,-500.0,0.00010786,2]
[348927031,1736874653638,-500.0,0.00010786,2]
[348927032,1736874653649,-27.74983055,0.00010786,2]
[348927033,1736874653662,-476.98617929,0.00010786,2]
[348927034,1736874653672,-500.0,0.00010786,2]
[348927035,1736874653682,-512.24318407,0.00010786,2]
[348927036,1736874653691,-500.0,0.00010786,2]
[348927037,1736874653702,-500.0,0.00010786,2]
[348927038,1736874653711,-500.0,0.00010786,2]
[348927039,1736874653721,-500.0,0.00010786,2]
[348927040,1736874653731,-484.86040052,0.00010786,2]
[348927041,1736874653740,-500.0,0.00010786,2]
[348927042,1736874653749,-500.0,0.00010786,2]
[348927043,1736874653759,-500.0,0.00010786,2]
[348927044,1736874653768,-769.09,0.00010786,2]
[348927045,1736874653778,-571.9,0.00010786,2]
[348927046,1736874653788,-931.22,0.00010786,2]
[348927047,1736874653798,-1164.61,0.00010787,2]
[348927048,1736874653808,-669.9,0.00010787,2]
[348927049,1736874653817,-1012.55,0.00010789,2]
[348927050,1736874653827,-1395.8,0.00010789,2]
[348927051,1736874653836,-4210.37,0.00010789,2]
[348927052,1736874653846,-904.43,0.00010789,2]
[348927053,1736874653856,-646.71,0.00010789,2]
[348927054,1736874653866,-1140.74,0.00010789,2]
[348927055,1736874653876,-570.49,0.00010789,2]
[348927056,1736874653886,-2114.74,0.00010789,2]
[348927057,1736874653896,-782.74,0.00010789,2]
[348927058,1736874653907,-500.0,0.00010789,2]
[348927059,1736874653917,-1263.13,0.00010789,2]
[348927060,1736874653926,-946.28,0.00010789,2]
[348927061,1736874653938,-500.0,0.00010795,2]
[348927062,1736874653950,-251.83433552,0.00010795,2]
[348927063,1736874653964,-248.16566448,0.00010795,2]
[348927064,1736874653974,-500.0,0.00010795,2]
[348927065,1736874653984,-500.0,0.00010795,2]
[348927066,1736874653994,-500.0,0.00010795,2]
[348927067,1736874654004,-500.0,0.00010795,2]
[348927068,1736874654015,-620.5,0.00010795,2]
[348927069,1736874654025,-500.0,0.00010795,2]
[348927070,1736874654036,-500.0,0.00010795,2]
[348927071,1736874654049,-500.0,0.00010795,2]
[348927072,1736874654059,-500.0,0.00010795,2]
[348927073,1736874654068,-500.0,0.00010795,2]
[348927074,1736874654079,-516.48,0.00010795,2]
[348927075,1736874654090,-500.0,0.00010795,2]
[348927076,1736874654100,-500.0,0.00010795,2]
[348927077,1736874654109,-500.0,0.00010795,2]
[348927078,1736874654118,-500.0,0.00010795,2]
[348927079,1736874654128,-500.0,0.00010795,2]
[348927080,1736874654139,-500.0,0.00010795,2]
[348927081,1736874654148,-500.0,0.00010795,2]
[348927082,1736874654158,-500.0,0.00010795,2]
[348927083,1736874654167,-500.0,0.00010795,2]
[348927084,1736874654177,-500.0,0.00010795,2]
[348927085,1736874654187,-500.0,0.00010795,2]
[348927086,1736874654196,-504.45,0.00010795,2]
[348927087,1736874654208,-500.0,0.00010795,2]
[348927088,1736874654219,-500.0,0.00010795,2]
[348927089,1736874654229,-500.0,0.00010795,2]
[348927090,1736874654240,-175.84435886,0.00010795,2]
[348927091,1736874654251,-500.0,0.00010795,2]
[348927092,1736874654261,-582.96,0.00010795,2]
[348927093,1736874654271,-500.0,0.00010795,2]
[348927094,1736874654280,-302.82510393,0.00010795,2]
[348927095,1736874654289,-500.0,0.00010795,2]
[348927096,1736874654299,-500.0,0.00010795,2]
[348927097,1736874654308,-500.0,0.00010795,2]
[348927098,1736874654320,-500.0,0.00010795,2]
[348927099,1736874654329,-500.0,0.00010795,2]
[348927100,1736874654338,-500.0,0.00010795,2]
[348927101,1736874654348,-500.0,0.00010795,2]
[348927102,1736874654357,-655.28,0.00010795,2]
[348927103,1736874654367,-500.0,0.00010795,2]
[348927104,1736874654376,-500.0,0.00010795,2]
[348927105,1736874654386,-500.0,0.00010795,2]
[348927106,1736874654396,-500.0,0.00010795,2]
[348927107,1736874654405,-500.0,0.00010795,2]
[348927108,1736874654415,-500.0,0.00010795,2]
[348927109,1736874654425,-513.61363793,0.00010795,2]
[348927110,1736874654434,-500.0,0.00010795,2]
[348927111,1736874654444,-500.0,0.00010795,2]
[348927112,1736874654454,-500.0,0.00010795,2]
[348927113,1736874654464,-500.0,0.00010795,2]
[348927114,1736874654474,-500.0,0.00010795,2]
[348927115,1736874654484,-500.0,0.00010795,2]
[348927116,1736874654493,-500.0,0.00010795,2]
[348927117,1736874654503,-500.0,0.00010795,2]
[348927118,1736874654513,-915.02,0.00010795,2]
[348927119,1736874654523,-500.0,0.00010795,2]
[348927120,1736874654534,-500.0,0.00010795,2]
[348927121,1736874654545,-500.0,0.00010795,2]
[348927122,1736874654555,-500.0,0.00010795,2]
[348927123,1736874654566,-500.0,0.00010795,2]
[348927124,1736874654577,-500.0,0.00010795,2]
[348927125,1736874654587,-792.53,0.00010795,2]
[348927126,1736874654597,-500.0,0.00010795,2]
[348927127,1736874654605,-735.394565,0.00010795,2]
[348927128,1736874654615,-500.0,0.00010795,2]
[348927129,1736874654625,-500.0,0.00010795,2]
[348927130,1736874654634,-500.0,0.00010795,2]
[348927131,1736874654644,-500.0,0.00010795,2]
[348927132,1736874654653,-500.0,0.00010795,2]
[348927133,1736874654662,-2410.71,0.00010795,2]
[348927134,1736874654672,-767.859734,0.00010795,2]
[348927135,1736874654681,-500.0,0.00010795,2]
[348927136,1736874654691,-506.37325306,0.00010795,2]
[348927137,1736874654701,-500.0,0.00010795,2]
[348927138,1736874654711,-500.0,0.00010795,2]
[348927139,1736874654721,-841.88,0.00010795,2]
[348927140,1736874654731,-500.0,0.00010795,2]
[348927141,1736874654740,-500.0,0.00010795,2]
[348927142,1736874654750,-500.0,0.00010795,2]
[348927143,1736874654760,-500.0,0.00010795,2]
[348927144,1736874654770,-500.0,0.00010795,2]
[348927145,1736874654780,-163.145946,0.00010795,2]
[348927146,1736874654790,-500.0,0.00010795,2]
[348927147,1736874654800,-500.0,0.00010795,2]
[348927148,1736874654812,-500.0,0.00010795,2]
[348927149,1736874654822,-500.0,0.00010795,2]
[348927150,1736874654833,-500.0,0.00010795,2]
[348927151,1736874654844,-500.0,0.00010795,2]
[348927152,1736874654855,-500.0,0.00010795,2]
[348927153,1736874654866,-500.0,0.00010795,2]
[348927154,1736874654876,-500.0,0.00010795,2]
[348927155,1736874654885,-500.0,0.00010795,2]
[348927156,1736874654894,-500.0,0.00010795,2]
[348927157,1736874654904,-2848.83,0.00010795,2]
[348927158,1736874654914,-500.0,0.00010795,2]
[348927159,1736874654924,-500.0,0.00010795,2]
[348927160,1736874654933,-500.0,0.00010795,2]
[348927161,1736874654943,-500.0,0.00010795,2]
[348927162,1736874654954,-500.0,0.00010795,2]
[348927163,1736874654964,-500.0,0.00010795,2]
[348927164,1736874654973,-500.0,0.00010795,2]
[348927165,1736874654982,-500.0,0.00010795,2]
[348927166,1736874654992,-500.0,0.00010795,2]
[348927167,1736874655002,-500.0,0.00010795,2]
[348927168,1736874655012,-500.0,0.00010795,2]
[348927169,1736874655021,-500.0,0.00010795,2]
[348927170,1736874655031,-500.0,0.00010795,2]
[348927171,1736874655043,-2878.74,0.00010795,2]
[348927172,1736874655054,-500.0,0.00010795,2]
[348927173,1736874655064,-500.0,0.00010795,2]
[348927174,1736874655074,-2273.43,0.00010795,2]
[348927175,1736874655086,-500.0,0.00010795,2]
[348927176,1736874655096,-500.0,0.00010795,2]
[348927177,1736874655106,-500.0,0.00010795,2]
[348927178,1736874655116,-500.0,0.00010795,2]
[348927179,1736874655127,-500.0,0.00010795,2]
[348927180,1736874655138,-500.0,0.00010795,2]
[348927181,1736874655149,-500.0,0.00010795,2]
[348927182,1736874655159,-500.0,0.00010795,2]
[348927183,1736874655169,-1853.63,0.00010795,2]
[348927184,1736874655178,-500.0,0.00010795,2]
[348927185,1736874655191,-169.18884,0.00010795,2]
[348927186,1736874655201,-500.0,0.00010795,2]
[348927187,1736874655211,-500.0,0.00010795,2]
[348927188,1736874655220,-500.0,0.00010795,2]
[348927189,1736874655229,-500.0,0.00010795,2]
[348927190,1736874655238,-500.0,0.00010795,2]
[348927191,1736874655248,-500.0,0.00010795,2]
[348927192,1736874655259,-500.0,0.00010795,2]
[348927193,1736874655270,-500.0,0.00010795,2]
[348927194,1736874655279,-500.0,0.00010795,2]
[348927195,1736874655289,-353.24201192,0.00010795,2]
[348927196,1736874655302,-500.0,0.00010795,2]
[348927197,1736874655312,-861.59,0.00010795,2]
[348927198,1736874655321,-500.0,0.00010795,2]
[348927199,1736874655330,-500.0,0.00010795,2]
[348927200,1736874655341,-536.63,0.00010795,2]
[348927201,1736874655352,-156.898007,0.00010795,2]
[348927202,1736874655362,-500.0,0.00010795,2]
[348927203,1736874655372,-500.0,0.00010795,2]
[348927204,1736874655382,-500.0,0.00010795,2]
[348927205,1736874655393,-500.0,0.00010795,2]
[348927206,1736874655403,-500.0,0.00010795,2]
[348927207,1736874655416,-500.0,0.00010795,2]
[348927208,1736874655426,-500.0,0.00010795,2]
[348927209,1736874655436,-579.0,0.00010795,2]
[348927210,1736874655446,-500.0,0.00010795,2]
[348927211,1736874655457,-500.0,0.00010795,2]
[348927212,1736874655467,-545.41081774,0.00010795,2]
[348927213,1736874655659,-500.0,0.00010795,2]
[348927214,1736874655669,-500.0,0.00010795,2]
[348927215,1736874655680,-500.0,0.00010795,2]
[348927216,1736874655689,-500.0,0.00010795,2]
[348927217,1736874655699,-500.0,0.00010795,2]
[348927218,1736874655709,-500.0,0.00010796,2]
[348927219,1736874655718,-1566.81,0.00010796,2]
[348927220,1736874655728,-555.75,0.00010796,2]
[348927221,1736874655737,-852.0,0.00010796,2]
[348927222,1736874655747,-500.0,0.00010796,2]
[348927223,1736874655757,-500.0,0.00010796,2]
[348927224,1736874655768,-500.0,0.00010796,2]
[348927225,1736874655778,-777.15,0.00010796,2]
[348927226,1736874655787,-500.0,0.00010796,2]
[348927227,1736874655797,-500.0,0.00010796,2]
[348927228,1736874655807,-668.22,0.00010796,2]
[348927229,1736874655817,-500.0,0.00010796,2]
[348927230,1736874655826,-500.0,0.00010796,2]
[348927231,1736874655837,-500.0,0.00010796,2]
[348927232,1736874655847,-500.0,0.00010796,2]
[348927233,1736874655858,-500.0,0.00010796,2]
[348927234,1736874655868,-1596.93,0.00010796,2]
[348927235,1736874655879,-579.09,0.00010796,2]
[348927236,1736874655889,-500.0,0.00010796,2]
[348927237,1736874655899,-500.0,0.00010796,2]
[348927238,1736874655911,-961.72,0.00010796,2]
[348927239,1736874655921,-818.85,0.00010796,2]
[348927240,1736874655931,-569.76,0.00010796,2]
[348927241,1736874655940,-1665.38,0.00010796,2]
[348927242,1736874655951,-950.37,0.00010796,2]
[348927243,1736874655962,-513.07956152,0.00010796,2]
[348927244,1736874655971,-1000.0,0.00010796,2]
[348927245,1736874655981,-784.12,0.00010796,2]
[348927246,1736874655991,-500.0,0.00010796,2]
[348927247,1736874656003,-667.27,0.00010796,2]
[348927248,1736874656013,-862.70120168,0.00010815,2]
[348927249,1736874656022,-161.46847612,0.000109,2]
[348927250,1736874656032,-150.0,0.00010959,2]
[348927251,1736874656045,-550.0,0.00011,2]
[348927252,1736874656054,-1836.93028613,0.00011052,2]
[348927253,1736874656064,-500.0,0.00011059,2]
[348927254,1736874656073,-389.70603506,0.00011059,2]
[348927255,1736874656084,-500.0,0.00011059,2]
[348927256,1736874656094,-500.0,0.00011059,2]
[348927257,1736874656104,-500.0,0.00011059,2]
[348927258,1736874656113,-500.0,0.00011059,2]
[348927259,1736874656125,-500.0,0.00011059,2]
[348927260,1736874656134,-500.0,0.00011059,2]
[348927261,1736874656144,-500.0,0.00011059,2]
[348927262,1736874656154,-229.35551616,0.00011059,2]
[348927263,1736874656163,-7.39041491,0.00011059,2]
[348927264,1736874656419,-479.31853133,0.00011059,2]
[348927265,1736874656432,-862.3159344,0.00011059,2]
[348927266,1736874656444,-982.45049282,0.00011059,2]
[348927267,1736874656460,-1075.66462654,0.00011059,2]
[348927268,1736874656470,-500.0,0.00011059,2]
[348927269,1736874656480,-500.0,0.00011059,2]
[348927270,1736874656491,-561.01,0.00011059,2]
[348927271,1736874656501,-508.87,0.00011059,2]
[348927272,1736874656511,-596.92,0.00011059,2]
[348927273,1736874656522,-607.21,0.00011059,2]
[348927274,1736874656532,-500.0,0.00011059,2]
[348927275,1736874656542,-500.0,0.00011059,2]
[348927276,1736874656551,-917.35,0.00011059,2]
[348927277,1736874656560,-500.0,0.00011059,2]
[348927278,1736874656570,-500.0,0.00011059,2]
[348927279,1736874656581,-500.0,0.00011059,2]
[348927280,1736874656591,-989.63,0.00011059,2]
[348927281,1736874656601,-500.0,0.00011059,2]
[348927282,1736874656611,-500.0,0.00011059,2]